bitfinex/quotes_BTCUSD_20220201
["timestamp","ask_amount","ask_price","bid_price","bid_amount"]
[1643738757315,0.00135526,38815.0,38803.0,0.01856325]
[1643738757714,0.24452654,38816.0,38803.0,0.01856325]
[1643738757915,0.24452654,38816.0,38804.0,0.27297945]
[1643738758115,0.24452654,38816.0,38805.0,0.29928882]
[1643738758518,0.24452654,38816.0,38805.0,0.36370882]
[1643738758719,0.24452654,38816.0,38805.0,0.29928882]
[1643738758956,0.24452654,38816.0,38805.0,0.19928882]
[1643738759355,0.24452654,38816.0,38805.0,0.29928882]
[1643738759356,0.23952654,38816.0,38805.0,0.29928882]
[1643738759558,0.23952654,38816.0,38805.0,0.1]
[1643738759756,0.23952654,38816.0,38805.0,0.164421]
[1643738760156,0.23952654,38816.0,38805.0,0.064421]
[1643738760357,0.00135669,38812.0,38805.0,0.26195272]
[1643738760558,0.00135669,38812.0,38806.0,0.299487]
[1643738760956,0.00135669,38812.0,38810.0,0.21681165]
[1643738761262,0.05,38821.0,38811.0,1.19626315]
[1643738761263,0.06441835,38820.0,38811.0,1.19626315]
[1643738761463,0.00135669,38813.0,38811.0,0.89681815]
[1643738761659,0.00135669,38813.0,38812.0,0.299431]
[1643738761861,0.00135669,38813.0,38809.0,0.10619954]
[1643738762061,0.00135669,38813.0,38810.0,0.299451]
[1643738762259,0.00135669,38813.0,38810.0,0.179451]
[1643738762560,0.16485881,38821.0,38812.0,0.28101776]
[1643738762804,0.00135669,38813.0,38812.0,0.28101776]
[1643738763003,0.00135669,38813.0,38812.0,0.46045176]
[1643738763603,0.21485881,38821.0,38812.0,0.46045176]
[1643738763809,0.06441502,38820.0,38812.0,0.28101776]
[1643738764006,0.00135669,38814.0,38812.0,0.28101776]
[1643738764206,0.00135669,38814.0,38813.0,0.179429]
[1643738764807,0.06441502,38820.0,38813.0,0.179429]
[1643738765007,0.06441502,38820.0,38812.0,0.28101776]
[1643738765207,0.00135669,38815.0,38812.0,0.28101776]
[1643738766008,0.12883302,38820.0,38812.0,0.28101776]
[1643738766464,0.00135669,38815.0,38812.0,0.28101776]
[1643738767062,0.00135669,38815.0,38813.0,0.179429]
[1643738767263,0.06441012,38822.0,38813.0,0.179429]
[1643738767464,0.06441012,38822.0,38818.0,0.29582089]
[1643738767666,0.06441012,38822.0,38817.0,0.26595447]
[1643738768663,0.00135669,38821.0,38817.0,0.26595447]
[1643738769265,0.00135669,38821.0,38815.0,0.08933264]
[1643738769567,0.00135669,38821.0,38809.0,0.02093959]
[1643738769568,0.06441464,38820.0,38809.0,0.02093959]
[1643738769767,0.05,38821.0,38809.0,0.02093959]
[1643738769965,0.00135669,38820.0,38809.0,0.02093959]
[1643738770405,0.05295669,38820.0,38809.0,0.02093959]
[1643738770605,0.06442273,38817.0,38809.0,0.02093959]
[1643738770805,0.11442273,38817.0,38807.0,0.62965235]
[1643738771105,0.00135669,38815.0,38807.0,0.62965235]
[1643738771314,0.00135669,38815.0,38808.0,0.010312]
[1643738771506,0.13245856,38811.0,38808.0,0.010312]
[1643738771711,0.13245856,38811.0,38807.0,0.02095755]
[1643738771712,0.400879,38810.0,38807.0,0.02095755]
[1643738772405,0.40223569,38810.0,38807.0,0.02095755]
[1643738772906,0.14414304,38799.0,38798.0,0.20151762]
[1643738773106,0.14414304,38799.0,38797.0,0.11366141]
[1643738773707,0.00135669,38800.0,38797.0,0.11366141]
[1643738774560,0.0516,38802.0,38797.0,0.11366141]
[1643738774759,0.00135669,38800.0,38797.0,0.11366141]
[1643738775561,0.00135669,38800.0,38793.0,0.28327346]
[1643738775760,0.11604384,38802.0,38793.0,0.28327346]
[1643738775761,0.16604384,38802.0,38793.0,0.28327346]
[1643738775959,0.00135669,38800.0,38793.0,0.28327346]
[1643738776664,0.06580373,38800.0,38788.0,0.74156485]
[1643738776866,1.88728992,38800.0,38789.0,0.3907]
[1643738777061,1.93728992,38800.0,38789.0,0.3907]
[1643738777262,0.00135669,38798.0,38789.0,0.3907]
[1643738777463,0.00135669,38798.0,38791.0,0.23689239]
[1643738777710,0.00135669,38798.0,38791.0,0.31917303]
[1643738777903,0.00135669,38798.0,38792.0,0.179562]
[1643738778104,0.16444704,38800.0,38792.0,0.179562]
[1643738778307,0.16444704,38800.0,38791.0,0.31917303]
[1643738778703,0.16444704,38800.0,38795.0,0.11005144]
[1643738778905,0.1,38800.0,38795.0,0.11005144]
[1643738779203,0.2160436,38802.0,38795.0,0.11005144]
[1643738779606,0.00135956,38799.0,38795.0,0.11005144]
[1643738779807,0.00135956,38799.0,38798.0,0.08467327]
[1643738780006,0.00135956,38799.0,38789.0,0.3907]
[1643738780308,0.00135956,38799.0,38790.0,0.17957]
[1643738780506,0.21604329,38802.0,38790.0,0.17957]
[1643738780707,0.00135956,38796.0,38789.0,0.3907]
[1643738780907,0.00135956,38796.0,38794.0,0.11421865]
[1643738781109,0.00135956,38796.0,38795.0,0.729547]
[1643738781756,0.0516,38802.0,38795.0,0.729547]
[1643738781958,0.00135956,38797.0,38795.0,0.55]
[1643738782254,0.00135956,38797.0,38796.0,0.879537]
[1643738782655,0.00135956,38797.0,38796.0,0.179537]
[1643738782856,0.0516,38802.0,38795.0,0.243982]
[1643738783056,0.00135956,38798.0,38795.0,0.064438]
[1643738783258,0.00135956,38798.0,38796.0,0.179537]
[1643738783656,0.00135956,38798.0,38795.0,0.064438]
[1643738784056,0.0516,38802.0,38794.0,0.37019545]
[1643738784257,0.00135956,38798.0,38794.0,0.37019545]
[1643738784459,0.00135956,38798.0,38795.0,0.179544]
[1643738785310,0.0516,38802.0,38795.0,0.179544]
[1643738785513,0.00135956,38798.0,38789.0,0.3907]
[1643738785713,0.0516,38797.0,38789.0,0.3907]
[1643738785909,0.05,38796.0,38789.0,0.3907]
[1643738786110,0.0516,38795.0,38789.0,0.3907]
[1643738786510,0.230527,38795.0,38786.0,0.02069521]
[1643738786712,0.064465,38792.0,38786.0,0.02069521]
[1643738786912,0.0516,38791.0,38785.0,0.010318]
[1643738787511,0.06446485,38790.0,38785.0,0.010318]
[1643738787711,0.0516,38789.0,38785.0,0.010318]
[1643738787912,0.0516,38789.0,38787.0,0.12092381]
[1643738788212,0.0516,38789.0,38787.0,0.33448162]
[1643738788814,0.05151631,38789.0,38788.0,1.29502636]
[1643738789067,0.251314,38799.0,38788.0,1.47460936]
[1643738789068,0.12890766,38798.0,38788.0,1.47460936]
[1643738789367,0.064449,38800.0,38789.0,0.17958]
[1643738789567,0.064449,38800.0,38788.0,1.29502636]
[1643738789768,0.064449,38800.0,38795.0,0.27000213]
[1643738789968,0.06444723,38799.0,38798.0,0.10023846]
[1643738790367,0.06444723,38799.0,38795.0,0.27000213]
[1643738790368,0.00136177,38799.0,38795.0,0.27000213]
[1643738791372,0.05,38807.0,38796.0,0.179542]
[1643738791572,0.116038,38815.0,38799.0,0.05]
[1643738791573,0.4822,38814.0,38799.0,0.05]
[1643738791770,0.4822,38814.0,38807.0,0.24594456]
[1643738792008,0.21663614,38815.0,38810.0,0.07793332]
[1643738792167,0.9,38810.0,38806.0,0.11794717]
[1643738792369,0.9,38810.0,38806.0,0.21775643]
[1643738792567,0.9,38810.0,38798.0,0.1]
[1643738792805,0.90136177,38810.0,38799.0,0.20003178]
[1643738793006,0.90136177,38810.0,38803.0,0.21480914]
[1643738793705,0.95,38810.0,38804.0,0.09141293]
[1643738793905,0.00136177,38808.0,38804.0,0.09141293]
[1643738794105,0.00136177,38808.0,38799.0,0.02052478]
[1643738794706,1.97269332,38808.0,38799.0,0.02052478]
[1643738794910,1.97133155,38808.0,38804.0,0.25519676]
[1643738795109,0.00136177,38805.0,38804.0,0.25519676]
[1643738795910,0.00136177,38805.0,38804.0,0.43468376]
[1643738796109,0.05,38815.0,38804.0,0.43468376]
[1643738796308,0.05,38815.0,38804.0,0.25519676]
[1643738796309,0.00136177,38806.0,38804.0,0.25519676]
[1643738796559,0.00136177,38806.0,38805.0,0.879477]
[1643738797361,0.11442213,38815.0,38809.0,0.0938868]
[1643738798763,0.00136177,38814.0,38810.0,0.0924911]
[1643738799363,0.00136177,38814.0,38811.0,0.25224337]
[1643738800911,0.17224114,38817.0,38811.0,0.25224337]
[1643738801112,0.00136177,38814.0,38811.0,0.25224337]
[1643738802115,0.05,38816.0,38811.0,0.25224337]
[1643738802315,0.00136177,38814.0,38811.0,0.25224337]
[1643738803314,0.05,38816.0,38811.0,0.25224337]
[1643738803514,0.00136177,38814.0,38811.0,0.25224337]
[1643738803958,0.00136177,38814.0,38812.0,0.17944]
[1643738804358,0.00136177,38814.0,38813.0,0.74731846]
[1643738804658,0.05,38822.0,38819.0,0.1027042]
[1643738804858,0.05,38822.0,38819.0,0.19337545]
[1643738805159,0.05,38822.0,38811.0,0.25224337]
[1643738805358,0.05,38822.0,38812.0,0.06441]
[1643738805758,0.064409,38820.0,38811.0,0.25224337]
[1643738805956,0.00136177,38819.0,38815.0,0.11097139]
[1643738806758,0.00136177,38819.0,38817.0,0.28291562]
[1643738806959,0.128832,38819.0,38815.0,0.11097139]
[1643738807159,0.13019377,38819.0,38815.0,0.11097139]
[1643738807361,0.13019377,38819.0,38815.0,0.11074139]
[1643738807808,0.13019377,38819.0,38815.0,0.110421]
[1643738808007,0.13019377,38819.0,38815.0,0.20294306]
[1643738808209,0.128832,38819.0,38815.0,0.20294306]
[1643738808405,0.13019377,38819.0,38815.0,0.20294306]
[1643738809406,0.128832,38819.0,38815.0,0.20294306]
[1643738809606,0.13019377,38819.0,38815.0,0.20294306]
[1643738810408,0.13019377,38819.0,38815.0,0.110421]
[1643738810614,0.13019377,38819.0,38809.0,0.3734]
[1643738810615,0.26500892,38818.0,38814.0,0.010311]
[1643738810827,0.349279,38817.0,38814.0,0.010311]
[1643738811008,0.28072257,38816.0,38809.0,0.3734]
[1643738811210,0.49514857,38816.0,38809.0,0.3734]
[1643738811658,0.349279,38815.0,38805.0,0.10463469]
[1643738811858,0.32700284,38814.0,38805.0,0.10463469]
[1643738812056,0.37836461,38814.0,38805.0,0.10463469]
[1643738812255,0.42836461,38814.0,38805.0,0.10463469]
[1643738812456,0.49280061,38814.0,38805.0,0.10463469]
[1643738812657,0.21739777,38814.0,38805.0,0.10463469]
[1643738812857,0.0644368,38812.0,38805.0,0.10463469]
[1643738813062,0.05296177,38811.0,38805.0,0.10463469]
[1643738813461,0.00136177,38811.0,38810.0,0.25597307]
[1643738813657,0.06578977,38811.0,38810.0,0.35917507]
[1643738814057,0.064428,38811.0,38810.0,0.103202]
[1643738815059,0.00136177,38812.0,38810.0,0.3542429]
[1643738815317,0.064417,38814.0,38810.0,0.3542429]
[1643738815318,0.064417,38814.0,38811.0,0.8467706]
[1643738815516,0.00136177,38813.0,38811.0,0.8467706]
[1643738815726,0.00136177,38813.0,38812.0,0.70962622]
[1643738815914,0.00136177,38813.0,38812.0,0.88906522]
[1643738816714,0.064413,38818.0,38816.0,0.08210347]
[1643738816914,0.08309414,38818.0,38817.0,0.10358455]
[1643738818515,0.68309414,38818.0,38817.0,0.10358455]
[1643738818959,0.664413,38818.0,38817.0,0.10358455]
[1643738819360,0.064413,38818.0,38817.0,0.10358455]
[1643738819560,0.05,38820.0,38817.0,0.10358455]
[1643738819760,0.11441,38822.0,38817.0,0.10358455]
[1643738819960,0.06441,38822.0,38817.0,0.10358455]
[1643738820160,0.11441,38822.0,38817.0,0.10358455]
[1643738820464,0.0013641,38821.0,38817.0,0.10358455]
[1643738820761,0.0013641,38821.0,38820.0,0.28754831]
[1643738820963,0.6,38820.0,38818.0,0.21193755]
[1643738821161,0.0013641,38821.0,38818.0,0.21193755]
[1643738821361,0.06441,38822.0,38818.0,0.21193755]
[1643738821560,0.0013641,38821.0,38818.0,0.21193755]
[1643738821763,0.0013641,38821.0,38819.0,0.19521965]
[1643738821961,0.0013641,38821.0,38818.0,0.21193755]
[1643738822162,0.0013641,38821.0,38819.0,0.179399]
[1643738822361,0.0013641,38821.0,38820.0,1.19724479]
[1643738822565,0.02042551,38825.0,38820.0,1.02663379]
[1643738822816,0.0013641,38822.0,38821.0,0.179381]
[1643738823012,0.0013641,38822.0,38821.0,0.41228767]
[1643738823212,0.02168826,38826.0,38822.0,1.4]
[1643738823413,0.02168826,38826.0,38823.0,0.51691018]
[1643738823613,0.02168826,38826.0,38824.0,0.02042551]
[1643738823811,0.02168826,38826.0,38825.0,1.129358]
[1643738824010,0.02168826,38826.0,38825.0,1.3938017]
[1643738824211,0.02168826,38826.0,38825.0,1.50240822]
[1643738826660,0.02168826,38826.0,38825.0,1.60240822]
[1643738827263,0.02168826,38826.0,38825.0,2.00240822]
[1643738827461,0.02168826,38826.0,38825.0,1.65400822]
[1643738828262,0.00136069,38827.0,38826.0,1.364378]
[1643738828461,0.06560854,38828.0,38826.0,1.595329]
[1643738828662,0.06560854,38828.0,38827.0,1.57503646]
[1643738828867,0.06696923,38828.0,38827.0,1.62663646]
[1643738829664,0.06560854,38828.0,38827.0,1.62663646]
[1643738830314,0.06560854,38828.0,38827.0,1.72663646]
[1643738830518,0.001,38832.0,38829.0,1.45]
[1643738830717,0.001,38832.0,38831.0,1.4]
[1643738830913,0.001,38832.0,38831.0,1.63092]
[1643738831114,0.001,38832.0,38831.0,1.73092]
[1643738831322,0.001,38843.0,38836.0,0.05]
[1643738831522,0.001,38843.0,38837.0,0.50946304]
[1643738831713,0.001,38843.0,38838.0,0.41138504]
[1643738831915,0.001,38843.0,38839.0,0.230869]
[1643738832113,0.001,38843.0,38839.0,0.280869]
[1643738832315,0.001,38843.0,38840.0,0.05]
[1643738832515,0.001,38843.0,38841.0,1.080858]
[1643738832717,0.001,38843.0,38841.0,1.280858]
[1643738833217,0.001,38843.0,38841.0,1.280718]
[1643738833614,0.00145729,38843.0,38841.0,0.430718]
[1643738833817,0.00145729,38843.0,38842.0,1.75989391]
[1643738834067,0.00145729,38843.0,38842.0,1.730851]
[1643738834466,0.0001,38843.0,38842.0,1.730851]
[1643738835464,0.0001,38843.0,38842.0,3.093851]
[1643738836264,0.00117729,38844.0,38842.0,3.093851]
[1643738836465,0.00117729,38844.0,38843.0,1.89094462]
[1643738836669,0.00117729,38844.0,38843.0,1.99254462]
[1643738836867,0.001,38847.0,38843.0,2.09254462]
[1643738837067,0.001,38847.0,38844.0,0.17312357]
[1643738837267,0.001,38847.0,38845.0,0.0516]
[1643738837905,0.001,38847.0,38846.0,0.28341959]
[1643738838105,0.001,38847.0,38846.0,0.33501959]
[1643738838306,0.001,38847.0,38846.0,0.43501959]
[1643738839106,0.001,38847.0,38846.0,0.48501959]
[1643738840912,0.001,38847.0,38846.0,0.0516]
[1643738841113,0.001,38847.0,38844.0,0.11908057]
[1643738841313,0.001,38847.0,38844.0,0.010302]
[1643738841964,0.01949684,38842.0,38838.0,0.6188]
[1643738842159,0.06437,38845.0,38842.0,0.09154502]
[1643738843158,0.06572684,38845.0,38842.0,0.09154502]
[1643738843358,0.06572684,38845.0,38839.0,0.0870114]
[1643738843559,0.06572684,38845.0,38835.0,0.3684]
[1643738843760,0.0516,38844.0,38835.0,0.3684]
[1643738843960,0.1016,38844.0,38835.0,0.3684]
[1643738844463,0.06573284,38841.0,38836.0,0.09537747]
[1643738845059,0.0516,38840.0,38836.0,0.09537747]
[1643738845311,0.1016,38840.0,38836.0,0.09537747]
[1643738845513,0.10295683,38840.0,38832.0,0.02027125]
[1643738845709,0.10295683,38840.0,38830.0,0.02006949]
[1643738845908,0.064383,38838.0,38830.0,0.02006949]
[1643738846111,0.0516,38837.0,38830.0,0.02006949]
[1643738846509,0.0516,38837.0,38832.0,0.08974836]
[1643738846708,0.0516,38837.0,38830.0,0.02006949]
[1643738847112,0.0516,38837.0,38827.0,1.21627087]
[1643738847310,0.0516,38837.0,38829.0,0.09660398]
[1643738849100,0.0516,38837.0,38831.0,0.09869517]
[1643738849298,0.0516,38837.0,38835.0,0.10824678]
[1643738850600,0.0516,38837.0,38831.0,0.09869517]
[1643738851399,0.0516,38837.0,38831.0,0.20023952]
[1643738851798,0.11598867,38837.0,38831.0,0.20023952]
[1643738852201,0.21598867,38837.0,38831.0,0.20023952]
[1643738852399,0.21598867,38837.0,38827.0,1.21627087]
[1643738852400,0.06439,38835.0,38827.0,1.21627087]
[1643738852603,0.0516,38834.0,38827.0,1.21627087]
[1643738853410,0.0516,38834.0,38829.0,0.11650873]
[1643738855515,0.0516,38834.0,38829.0,0.09718633]
[1643738855716,0.1016,38834.0,38829.0,0.09718633]
[1643738855917,0.1016,38834.0,38824.0,0.00146433]
[1643738856117,0.1016,38834.0,38824.0,0.25791734]
[1643738856316,0.1016,38834.0,38827.0,0.10231848]
[1643738856962,0.1016,38834.0,38828.0,0.09535297]
[1643738858461,0.0516,38834.0,38828.0,0.09535297]
[1643738858663,0.0516,38834.0,38830.0,0.25347341]
[1643738860312,0.05135945,38840.0,38834.0,0.12496559]
[1643738860912,0.05,38840.0,38834.0,0.12496559]
[1643738861112,0.05135963,38840.0,38834.0,0.12496559]
[1643738861315,0.05135963,38840.0,38836.0,0.28425732]
[1643738861515,0.00135963,38840.0,38839.0,0.09414877]
[1643738862114,0.00135963,38840.0,38836.0,0.28425732]
[1643738862115,0.7,38839.0,38836.0,0.28425732]
[1643738862317,0.00135967,38841.0,38836.0,0.28425732]
[1643738862517,0.00135967,38841.0,38840.0,0.09722688]
[1643738862912,0.35135967,38841.0,38840.0,0.08292688]
[1643738863316,0.01923019,38845.0,38840.0,0.08292688]
[1643738863716,0.001,38847.0,38840.0,0.08292688]
[1643738863717,0.00135967,38842.0,38840.0,0.08292688]
[1643738863965,0.00135967,38842.0,38836.0,0.34862232]
[1643738864161,0.00135967,38842.0,38836.0,0.28425732]
[1643738864561,0.001,38847.0,38837.0,0.19746822]
[1643738864761,0.001,38847.0,38837.0,0.19415617]
[1643738864762,0.00135967,38841.0,38837.0,0.19415617]
[1643738864962,0.00135967,38841.0,38839.0,0.11471589]
[1643738865661,0.065369,38847.0,38839.0,0.11471589]
[1643738866061,0.00135967,38842.0,38839.0,0.11471589]
[1643738866261,0.00135967,38842.0,38838.0,0.010305]
[1643738866461,0.00135967,38842.0,38836.0,0.28425732]
[1643738867163,0.00135967,38841.0,38832.0,0.1]
[1643738867363,0.00135967,38841.0,38835.0,0.20780805]
[1643738868021,0.00135967,38841.0,38831.0,0.113]
[1643738868225,0.128753,38846.0,38829.0,0.01926737]
[1643738868226,0.23717021,38845.0,38829.0,0.01926737]
[1643738868517,0.00135966,38840.0,38829.0,0.01926737]
[1643738869216,0.0516,38839.0,38828.0,0.96578662]
[1643738869817,0.0516,38839.0,38829.0,0.19703132]
[1643738870018,0.115982,38839.0,38829.0,0.19703132]
[1643738870216,0.115982,38839.0,38828.0,0.37058662]
[1643738870722,0.115982,38839.0,38834.0,0.12389667]
[1643738871118,0.26624106,38839.0,38828.0,0.25627711]
[1643738871320,0.26624106,38839.0,38826.0,0.22159372]
[1643738871558,0.26624106,38839.0,38826.0,0.32159372]
[1643738872159,0.26624106,38839.0,38828.0,0.09601876]
[1643738872563,0.26624106,38839.0,38829.0,0.23002483]
[1643738872762,0.05,38838.0,38829.0,0.23002483]
[1643738872968,0.064386,38835.0,38829.0,0.23002483]
[1643738873364,0.0516,38839.0,38829.0,0.23002483]
[1643738873565,0.0516,38839.0,38829.0,0.42482948]
[1643738873966,0.0516,38839.0,38829.0,0.23002483]
[1643738874165,0.0516,38839.0,38827.0,0.28488866]
[1643738874366,0.0516,38839.0,38827.0,0.08629149]
[1643738874367,0.21592673,38839.0,38827.0,0.08629149]
[1643738874565,0.064382,38838.0,38827.0,0.08629149]
[1643738874765,0.049,38837.0,38827.0,0.08629149]
[1643738875812,0.064387,38835.0,38827.0,0.08629149]
[1643738876913,0.064387,38835.0,38828.0,0.19152774]
[1643738877113,0.064383,38838.0,38828.0,0.19152774]
[1643738877613,0.064383,38838.0,38833.0,0.07950936]
[1643738878218,0.064383,38838.0,38825.0,0.064385]
[1643738878415,0.064383,38838.0,38826.0,0.19277882]
[1643738878614,0.064383,38838.0,38826.0,0.19464999]
[1643738879261,0.064383,38838.0,38828.0,0.2913579]
[1643738879661,0.0516,38837.0,38828.0,0.39295306]
[1643738879862,0.0516,38837.0,38828.0,0.2913579]
[1643738880163,0.064386,38835.0,38824.0,0.11190736]
[1643738880362,0.064386,38835.0,38824.0,0.11337312]
[1643738880564,0.2335281,38834.0,38824.0,0.00146576]
[1643738880768,1.093644,38833.0,38824.0,0.00146576]
[1643738880964,0.13567163,38825.0,38824.0,0.00146576]
[1643738881165,1.48616462,38825.0,38824.0,0.00146576]
[1643738881463,1.48616462,38825.0,38823.0,0.00146569]
[1643738881662,0.71505873,38824.0,38823.0,0.00146569]
[1643738881863,0.76665873,38824.0,38823.0,0.00146569]
[1643738882363,1.16590273,38824.0,38823.0,0.00146569]
[1643738882562,0.128829,38823.0,38819.0,0.01917111]
[1643738882814,0.25397629,38822.0,38819.0,0.01917111]
[1643738883216,0.25397629,38822.0,38818.0,0.01031]
[1643738884015,0.25397629,38822.0,38818.0,0.01177578]
[1643738884615,0.116014,38822.0,38819.0,0.21608057]
[1643738884815,0.116014,38822.0,38818.0,0.01177578]
[1643738885014,0.116014,38822.0,38818.0,0.01031]
[1643738885214,0.116014,38822.0,38819.0,0.00146577]
[1643738885416,0.17966087,38821.0,38819.0,0.00146577]
[1643738885616,0.9016,38820.0,38819.0,0.00146577]
[1643738886218,0.9016,38820.0,38818.0,0.01031]
[1643738886462,0.96601407,38820.0,38818.0,0.01177579]
[1643738887062,0.11601407,38820.0,38818.0,0.01177579]
[1643738887263,0.11601407,38820.0,38818.0,0.00146579]
[1643738887466,0.11601407,38820.0,38817.0,0.0011]
[1643738887763,0.11601407,38820.0,38817.0,0.0025658]
[1643738888669,0.11601407,38820.0,38817.0,0.0011]
[1643738888865,0.11601407,38820.0,38817.0,0.00256581]
[1643738889870,0.11601407,38820.0,38817.0,0.0011]
[1643738890070,0.11601407,38820.0,38817.0,0.00256581]
[1643738890316,0.0516,38820.0,38817.0,0.00256581]
[1643738891015,0.0516,38820.0,38817.0,0.0011]
[1643738891220,0.0516,38820.0,38817.0,0.00256581]
[1643738891816,0.0516,38820.0,38816.0,0.00293403]
[1643738892218,0.0516,38820.0,38815.0,0.37284847]
[1643738894869,0.0516,38820.0,38815.0,0.37431249]
[1643738895271,0.0516,38820.0,38815.0,0.00146402]
[1643738895869,0.0516,38820.0,38814.0,0.01341]
[1643738896069,0.0516,38820.0,38815.0,0.00146402]
[1643738897071,0.0516,38820.0,38814.0,0.01341]
[1643738897269,0.0516,38820.0,38815.0,0.00146402]
[1643738898119,0.0516,38820.0,38814.0,0.01341]
[1643738898319,0.0516,38820.0,38815.0,0.00146402]
[1643738899122,0.12882175,38822.0,38815.0,0.00146402]
[1643738899319,0.12882175,38822.0,38814.0,0.0031]
[1643738899523,0.18540384,38821.0,38815.0,0.00146404]
[1643738900222,0.128836,38819.0,38815.0,0.00146404]
[1643738900420,0.06441956,38818.0,38815.0,0.00146404]
[1643738900620,0.11601956,38818.0,38814.0,0.0031]
[1643738900821,0.11601956,38818.0,38815.0,0.00146401]
[1643738901777,0.11601956,38818.0,38814.0,0.0031]
[1643738901970,0.11601956,38818.0,38815.0,0.0007837]
[1643738902971,0.11601956,38818.0,38814.0,0.0031]
[1643738903174,0.11601956,38818.0,38815.0,0.0007837]
[1643738904273,0.11601956,38818.0,38814.0,0.0031]
[1643738904472,0.11601956,38818.0,38815.0,0.00146543]
[1643738905314,0.11601956,38818.0,38814.0,0.0031]
[1643738905515,0.11601956,38818.0,38815.0,0.00146543]
[1643738905716,0.16601956,38818.0,38815.0,0.00146543]
[1643738906613,0.16601956,38818.0,38814.0,0.0031]
[1643738906815,0.16601956,38818.0,38815.0,0.00146543]
[1643738907815,0.21601956,38818.0,38814.0,0.0031]
[1643738908015,0.128851,38816.0,38815.0,0.00146543]
[1643738908215,1.929695,38816.0,38815.0,0.00146543]
[1643738908816,1.4,38815.0,38814.0,0.00016915]
[1643738909065,2.09414111,38815.0,38814.0,0.00016915]
[1643738909264,2.19414111,38815.0,38814.0,0.00016915]
[1643738909766,2.73854111,38815.0,38814.0,0.00016915]
[1643738909964,2.83854111,38815.0,38814.0,0.00016915]
[1643738910166,2.73854111,38815.0,38814.0,0.00016915]
[1643738910566,2.83854111,38815.0,38814.0,0.00016915]
[1643738916667,2.83854111,38815.0,38805.0,0.0011]
[1643738916668,1.4,38814.0,38805.0,0.0011]
[1643738916869,0.064445,38812.0,38805.0,0.0011]
[1643738917067,1.4,38807.0,38805.0,0.0011]
[1643738917274,1.4,38804.0,38797.0,0.0031]
[1643738917469,2.00333322,38803.0,38797.0,0.0031]
[1643738917669,2.00333322,38803.0,38797.0,0.002]
[1643738917670,2.0444,38798.0,38797.0,0.002]
[1643738917870,1.464464,38797.0,38791.0,0.0042]
[1643738918069,2.0444,38794.0,38791.0,0.0042]
[1643738918271,2.495244,38794.0,38791.0,0.0042]
[1643738918865,2.495244,38794.0,38792.0,0.0014549]
[1643738918866,1.095244,38794.0,38792.0,0.0014549]
[1643738919869,1.095244,38794.0,38791.0,0.0042]
[1643738920068,1.095244,38794.0,38792.0,0.0014549]
[1643738921116,1.095244,38794.0,38791.0,0.0042]
[1643738921318,1.095244,38794.0,38792.0,0.0014549]
[1643738922218,1.095244,38794.0,38791.0,0.0042]
[1643738922521,1.045244,38794.0,38792.0,0.0014549]
[1643738923518,0.696,38794.0,38791.0,0.0042]
[1643738923819,0.696,38794.0,38792.0,0.0014549]
[1643738924069,0.696,38794.0,38793.0,0.09594423]
[1643738924273,0.25777534,38804.0,38793.0,1.29594423]
[1643738924470,0.6196,38807.0,38793.0,1.29594423]
[1643738924471,0.568,38807.0,38793.0,1.32037423]
[1643738924668,0.02039404,38805.0,38793.0,1.32037423]
[1643738924868,0.02178195,38805.0,38796.0,0.00145482]
[1643738925270,0.06443731,38804.0,38796.0,0.00145482]
[1643738925769,0.06443731,38804.0,38795.0,0.22971683]
[1643738925972,0.24619104,38803.0,38798.0,0.00145478]
[1643738926170,0.064439,38803.0,38798.0,0.00145478]
[1643738926570,0.25346738,38803.0,38798.0,0.00145478]
[1643738926973,0.30346738,38803.0,38793.0,0.29162596]
[1643738927174,0.0644428,38801.0,38799.0,0.00145477]
[1643738928219,0.0644428,38801.0,38796.0,0.10633215]
[1643738928417,0.0644428,38801.0,38798.0,0.00145478]
[1643738928617,0.064444,38800.0,38798.0,0.00145478]
[1643738929416,0.064444,38800.0,38796.0,0.10633215]
[1643738929618,0.064444,38800.0,38797.0,0.00145479]
[1643738929817,0.057028,38800.0,38797.0,0.00145479]
[1643738930618,0.057028,38800.0,38796.0,0.10633215]
[1643738930819,0.057028,38800.0,38797.0,0.0014548]
[1643738931868,0.07181134,38809.0,38796.0,0.10633215]
[1643738932069,0.00138795,38805.0,38797.0,0.0014548]
[1643738932269,0.00138795,38805.0,38798.0,0.0516]
[1643738932666,0.00138795,38805.0,38804.0,0.08868643]
[1643738933169,0.02181134,38809.0,38804.0,0.08868643]
[1643738933467,0.00138811,38806.0,38804.0,0.08868643]
[1643738934266,0.02022737,38810.0,38806.0,0.27081657]
[1643738934467,0.00138811,38807.0,38806.0,0.27081657]
[1643738934867,0.00138811,38807.0,38804.0,0.08868643]
[1643738935316,0.00138811,38807.0,38803.0,0.010314]
[1643738935521,0.064427,38808.0,38803.0,0.010314]
[1643738935716,0.00138811,38807.0,38803.0,0.010314]
[1643738935916,0.00138811,38807.0,38803.0,0.000314]
[1643738936517,0.00138811,38807.0,38803.0,0.09303606]
[1643738936715,0.064427,38808.0,38803.0,0.09303606]
[1643738936917,0.00138811,38807.0,38803.0,0.09303606]
[1643738937515,0.00138811,38807.0,38803.0,0.000314]
[1643738937916,0.064427,38808.0,38803.0,0.000314]
[1643738938121,0.00138811,38807.0,38803.0,0.000314]
[1643738938319,0.18361474,38807.0,38803.0,0.000314]
[1643738938717,0.00138811,38807.0,38803.0,0.000314]
[1643738938975,0.12885913,38808.0,38798.0,0.10064901]
[1643738939176,0.064432,38806.0,38801.0,0.00145475]
[1643738940277,0.064432,38806.0,38799.0,0.064429]
[1643738940477,0.00138811,38805.0,38801.0,0.00145473]
[1643738941477,0.064432,38806.0,38800.0,0.010314]
[1643738941675,0.00138811,38805.0,38801.0,0.00145472]
[1643738942728,0.064432,38806.0,38799.0,0.064429]
[1643738942921,0.00138811,38805.0,38801.0,0.00145472]
[1643738943923,0.064432,38806.0,38799.0,0.064429]
[1643738944223,0.00138811,38805.0,38801.0,0.00145472]
[1643738944924,0.00138811,38805.0,38804.0,0.10178455]
[1643738945123,0.064432,38806.0,38804.0,0.10178455]
[1643738945326,0.00138811,38805.0,38804.0,0.10178455]
[1643738945725,0.18313773,38805.0,38801.0,0.00145472]
[1643738945931,0.0516,38804.0,38801.0,0.00145472]
[1643738946226,0.20526726,38803.0,38794.0,0.9217]
[1643738946472,0.058439,38802.0,38801.0,0.00145473]
[1643738946674,0.24382207,38802.0,38801.0,0.00145473]